Name,Sub Group,Service Area ,Expense Type,Narrative,Date,Transaction No,Amount,Supplier Name,Supplier Ref,Period,Year
Allerdale Borough Council,15101,Supplies & Services,Parking Services Pay Group,Equipment Costs,05/11/2014,98946,63.00,NAGELS MULTIGRAPHIC LTD,A00690,8,2014
Allerdale Borough Council,15101,Supplies & Services,Public Convenience Cleaning,Equipment Costs,26/11/2014,98947,96.00,WF HYGIENE & CLEANING SUPPLIES,A01794,8,2014
Allerdale Borough Council,73102,Holding and Control Accounts,Allerdale House Tea Fund,Holding Accounts General - Expenditure,12/11/2014,98948,163.20,TELK LTD,A01670,8,2014
Allerdale Borough Council,12101,Premises,Corporate Property Maintenance,External Maintenance & Decoration,05/11/2014,98949,31.00,C CUNNINGHAM T/A MR KEYS,A00561,8,2014
Allerdale Borough Council,15101,Supplies & Services,Public Convenience Cleaning,Equipment Costs,12/11/2014,98950,795.38,INSTOCK (CHANDLERS),A00050,8,2014
Allerdale Borough Council,12401,Premises,Corporate Property Maintenance,Energy Management Charges,19/11/2014,98951,1921.00,SCHNEIDER ELECTRIC LTD,A00859,8,2014
Allerdale Borough Council,12201,Premises,Public Convenience Cleaning,Internal Maintenance,05/11/2014,98952,582.00,Redacted information - included personal information ,C00008,8,2014
Allerdale Borough Council,12101,Premises,Car Parks Inspection & Maintenance,External Maintenance & Decoration,26/11/2014,98953,3779.15,JOHN ELLIOTT LIMITED,C00023,8,2014
Allerdale Borough Council,15203,Supplies & Services,Portfolio Based Priorities,Catering Costs and Consumables,12/11/2014,98954,424.50,LAKES COLLEGE WEST CUMB,A00093,8,2014
Allerdale Borough Council,21150,Transfer Payments,Apprentices Scheme,General Grants,12/11/2014,98955,30000.00,LAKES COLLEGE WEST CUMB,A00093,8,2014
Allerdale Borough Council,15202,Supplies & Services,Carnegie Theatre,Bar Provision,12/11/2014,98956,191.98,DRINKS EXPRESS,A01862,8,2014
Allerdale Borough Council,10401,Employee Costs,Housing Services Pay Group,Agency Staff Costs,05/11/2014,98957,841.68,TEDGEM INVESTMENTS LTD,A01962,8,2014
Allerdale Borough Council,15103,Supplies & Services,Food and Occupational Health,Purchase of Materials,26/11/2014,98958,155.00,KLIPSPRINGER LTD,A01199,8,2014
Allerdale Borough Council,10401,Employee Costs,Parking Services Pay Group,Agency Staff Costs,05/11/2014,98959,1710.00,GATENBYSANDERSON LIMITED,A01953,8,2014
Allerdale Borough Council,15506,Supplies & Services,Communications and Marketing,Professional Services,05/11/2014,98960,3960.00,NWA SOCIAL & MARKET RESEARCH LTD,A02082,8,2014
Allerdale Borough Council,10202,Employee Costs,Human Resources Pay Group,Medical Screening,05/11/2014,98961,63.25,WELLWORK LTD,A00029,8,2014
Allerdale Borough Council,16150,Supplies & Services,Solway Wetlands Project,General Promotions,05/11/2014,98962,140.00,YUMMIEZ LIMITED,A02095,8,2014
Allerdale Borough Council,15500,Supplies & Services,Disposal of Allerdale Sites,Budget-Services,05/11/2014,98963,622.58,VALUATION OFFICE AGENCY,A00723,8,2014
Allerdale Borough Council,10202,Employee Costs,Human Resources Pay Group,Medical Screening,19/11/2014,98964,32.96,WELLWORK LTD,A00029,8,2014
Allerdale Borough Council,12201,Premises,Corporate Property Maintenance,Internal Maintenance,05/11/2014,98965,240.00,RAFFERTY DECORATING SERVICES LTD,C00117,8,2014
Allerdale Borough Council,12201,Premises,Corporate Property Maintenance,Internal Maintenance,12/11/2014,98966,375.50,RAFFERTY DECORATING SERVICES LTD,C00117,8,2014
Allerdale Borough Council,12201,Premises,Corporate Property Maintenance,Internal Maintenance,05/11/2014,98967,352.50,RAFFERTY DECORATING SERVICES LTD,C00117,8,2014
Allerdale Borough Council,15703,Supplies & Services,Silloth TIC,Call Charges,05/11/2014,98968,137.53,BRITISH TELECOMMUNICATIONS,X00004,8,2014
Allerdale Borough Council,15601,Supplies & Services,Benefits,Postage,05/11/2014,98969,1489.80,ROYAL MAIL LETTERS,X00021,8,2014
Allerdale Borough Council,20150,Third Party Payments,Off-street - Managed,General Partnership Service Fees,12/11/2014,98970,5595.33,HEARTHSTONE HOMES LTD,A01229,8,2014
Allerdale Borough Council,15702,Supplies & Services,Crime Prevention,Line Rentals,05/11/2014,98971,677.50,BRITISH TELECOMMUNICATIONS,X00004,8,2014
Allerdale Borough Council,12408,Premises,Corporate Property Maintenance,Water & Sewage,05/11/2014,98972,23.15,UNITED UTILITIES ,X00011,8,2014
Allerdale Borough Council,12402,Premises,Corporate Property Maintenance,Electricity,05/11/2014,98973,35.95,Redacted information - included personal information ,X00016,8,2014
Allerdale Borough Council,33121,Income,Off-street - Owned,Excess Charges - Car Parks Income,05/11/2014,98974,35.00,Redacted information - included personal information ,M00648,8,2014
Allerdale Borough Council,16350,Supplies & Services,Homelessness,Miscellaneous Expenses,05/11/2014,98975,450.00,ID PROPERTIES,M00259,8,2014
Allerdale Borough Council,10604,Employee Costs,New Centre Development,Hire of Training Rooms/Venues,05/11/2014,98976,322.50,SHIRE HOTELS,A02073,8,2014
Allerdale Borough Council,32150,Income,Arts Development,Miscellaneous Sales Income,05/11/2014,98977,26.67,TROPHIES SPORT & LEISURE LTD,A01704,8,2014
Allerdale Borough Council,15506,Supplies & Services,KMAG Enhancement Activity,Professional Services,05/11/2014,98978,385.00,POTTED HISTORY,A02048,8,2014
Allerdale Borough Council,10401,Employee Costs,Carnegie Theatre,Agency Staff Costs,05/11/2014,98979,607.50,ADECCO RECRUITMENT,A00188,8,2014
Allerdale Borough Council,15550,Supplies & Services,Carnegie Theatre,General-Service Related Fees,05/11/2014,98980,12.00,TRANSACTION NETWORK SERVICES (UK) LTD,A01778,8,2014
Allerdale Borough Council,14202,Transport,Director of Resources & PA,Hire Car and petrol,05/11/2014,98981,121.97,EILBECK RENTAL,A01161,8,2014
Allerdale Borough Council,15302,Supplies & Services,Public Convenience Cleaning,Protective Clothing,19/11/2014,98982,39.20,ARCO LIMITED - CARLISLE,A01448,8,2014
Allerdale Borough Council,15302,Supplies & Services,Public Convenience Cleaning,Protective Clothing,19/11/2014,98983,21.79,ARCO LIMITED - CARLISLE,A01448,8,2014
Allerdale Borough Council,14101,Transport,Parks and Grounds Maintenance,Vehicle Leasing,19/11/2014,98984,28.49,ENTERPRISE RENT A CAR,A01367,8,2014
Allerdale Borough Council,10601,Employee Costs,Head of Housing & Health,External Courses & Seminar Fees,12/11/2014,98985,365.98,BARCLAYCARD COMMERCIAL ,X00207,8,2014
Allerdale Borough Council,16150,Supplies & Services,Solway Wetlands Project,General Promotions,26/11/2014,98986,41.99,FINDEL EDUCATION LTD,A01767,8,2014
Allerdale Borough Council,15202,Supplies & Services,Carnegie Theatre,Bar Provision,05/11/2014,98987,77.96,DRINKS EXPRESS,A01862,8,2014
Allerdale Borough Council,12201,Premises,Corporate Property Maintenance,Internal Maintenance,26/11/2014,98988,740.00,RAFFERTY DECORATING SERVICES LTD,C00117,8,2014
Allerdale Borough Council,10401,Employee Costs,Public Convenience Cleaning,Agency Staff Costs,12/11/2014,98989,160.56,COCKERMOUTH TOWN COUNCIL,A00586,8,2014
Allerdale Borough Council,15811,Supplies & Services,IT Services,Software Maintenance,26/11/2014,98990,10000.00,CIVICA UK LIMITED,A00006,8,2014
Allerdale Borough Council,20150,Third Party Payments,Footways,General Partnership Service Fees,05/11/2014,98991,455.00,J B FENCING,C00075,8,2014
Allerdale Borough Council,20150,Third Party Payments,Multi-storey Car Park,General Partnership Service Fees,05/11/2014,98992,39924.60,PARKSAFE,A00647,8,2014
Allerdale Borough Council,15704,Supplies & Services,IT Services,Mobile Phones,05/11/2014,98993,1112.27,VODAFONE,A00551,8,2014
Allerdale Borough Council,15703,Supplies & Services,IT Services,Call Charges,19/11/2014,98994,812.01,VODAFONE (PREV CABLE & WIRELESS),A00934,8,2014
Allerdale Borough Council,16100,Supplies & Services,Communications and Marketing,Budget-Advertising and Promotions,05/11/2014,98995,45.00,FIRPRESS PRINTERS,A00063,8,2014
Allerdale Borough Council,16101,Supplies & Services,Finance and Accounting Pay Group,Statutory Notices,26/11/2014,98996,49.76,MCKANES PRINTERS,A01507,8,2014
Allerdale Borough Council,16102,Supplies & Services,Markets Service Development,Regeneration Initiatives,19/11/2014,98997,250.00,CUMBRIAN NEWSPAPERS LTD,A01200,8,2014
Allerdale Borough Council,16102,Supplies & Services,Supporting Allerdale Town Centres,Regeneration Initiatives,03/12/2014,98998,2525.00,FLAME CONCEPTS LTD,A01903,8,2014
Allerdale Borough Council,20301,Third Party Payments,Parks and Grounds Maintenance,Contract Services-Parks & Open Spaces,05/11/2014,98999,69854.00,ISS WATERERS LANDSCAPE,C00044,8,2014
Allerdale Borough Council,15103,Supplies & Services,KMAG Enhancement Activity,Purchase of Materials,05/11/2014,99000,100.00,KESWICK TOWN COUNCIL,A00253,8,2014
Allerdale Borough Council,15810,Supplies & Services,Carnegie Theatre,Software Licences,19/11/2014,99001,63.96,TICKETS.COM LTD,A00371,8,2014
Allerdale Borough Council,15810,Supplies & Services,Carnegie Theatre,Software Licences,12/11/2014,99002,57.40,TICKETS.COM LTD,A00371,8,2014
Allerdale Borough Council,15404,Supplies & Services,Legal Services,Reference Materials,26/11/2014,99003,261.00,SWEET & MAXWELL (THOMSON REUTERS),A00028,8,2014
Allerdale Borough Council,15810,Supplies & Services,Carnegie Theatre,Software Licences,26/11/2014,99004,19.68,TICKETS.COM LTD,A00371,8,2014
Allerdale Borough Council,21150,Transfer Payments,Museums,General Grants,05/11/2014,99005,1000.00,WORKINGTON HERITAGE GROUP LTD,A00339,8,2014
Allerdale Borough Council,20305,Third Party Payments,Sports & Leisure Centres,Contract Services-Leisure Centres,05/11/2014,99006,50600.00,CARLISLE LEISURE LTD,A00136,8,2014
Allerdale Borough Council,20305,Third Party Payments,Maryport Wave,Contract Services-Leisure Centres,05/11/2014,99007,12500.00,CARLISLE LEISURE LTD,A00136,8,2014
Allerdale Borough Council,15103,Supplies & Services,KMAG Enhancement Activity,Purchase of Materials,26/11/2014,99008,348.00,KESWICK SIGNS,A02092,8,2014
Allerdale Borough Council,15506,Supplies & Services,KMAG Enhancement Activity,Professional Services,05/11/2014,99009,385.00,POTTED HISTORY,A02048,8,2014
Allerdale Borough Council,15506,Supplies & Services,Arts Development,Professional Services,26/11/2014,99010,490.00,INSPIRED EXCHANGE,A02098,8,2014
Allerdale Borough Council,15202,Supplies & Services,Carnegie Theatre,Bar Provision,26/11/2014,99011,2606.43,DRINKS EXPRESS,A01862,8,2014
Allerdale Borough Council,15202,Supplies & Services,Carnegie Theatre,Bar Provision,12/11/2014,99012,13.32,SOLWAY HEATERS LTD,A00305,8,2014
Allerdale Borough Council,54105,Capital Expenditure,Disabled Facilities Grants,Grants  Private Individuals (Capital),05/11/2014,99013,2937.00,MAYSON BROS LTD,X00132,8,2014
Allerdale Borough Council,21150,Transfer Payments,BEC Social Investment Fund,General Grants,05/11/2014,99014,77500.00,FUSION GO LIMITED,A02097,8,2014
Allerdale Borough Council,16150,Supplies & Services,"The Hub, Workington Town Centre",General Promotions,05/11/2014,99015,200.00,Redacted information - included personal information ,M00649,8,2014
Allerdale Borough Council,16150,Supplies & Services,Town Centre Management,General Promotions,05/11/2014,99016,500.00,LOVE MARYPORT TOWN TEAM,M00621,8,2014
Allerdale Borough Council,12402,Premises,Corporate Property Maintenance,Electricity,05/11/2014,99017,994.44,N POWER,X00015,8,2014
Allerdale Borough Council,12402,Premises,Corporate Property Maintenance,Electricity,05/11/2014,99018,1469.87,N POWER,X00015,8,2014
Allerdale Borough Council,12402,Premises,Corporate Property Maintenance,Electricity,05/11/2014,99019,1478.14,N POWER,X00015,8,2014
Allerdale Borough Council,15500,Supplies & Services,Recycling,Budget-Services,05/11/2014,99020,800.00,Redacted information - included personal information ,M00650,8,2014
Allerdale Borough Council,10201,Employee Costs,Director of Resources & PA,Long Service Awards,05/11/2014,99021,260.00,Redacted information - included personal information ,M00427,8,2014
Allerdale Borough Council,35106,Income,Homelessness,Dwellings Income,05/11/2014,99022,474.50,ALLERDALE,A00342,8,2014
Allerdale Borough Council,15403,Supplies & Services,Communications and Marketing,Publications and Periodicals,05/11/2014,99023,65.60,P & D NEWSAGENTS,A00237,8,2014
Allerdale Borough Council,15501,Supplies & Services,Delivering Jobs and Growth,Consultants Fees,05/11/2014,99024,5200.00,REGIONAL NETWORK SOLUTIONS LIMITED,A02060,8,2014
Allerdale Borough Council,14101,Transport,Homelessness,Vehicle Leasing,05/11/2014,99025,171.74,DOBIES VAUXHALL,A00254,8,2014
Allerdale Borough Council,26000,Earmarked Reserves,Anti Poverty,Budget-Expd funded from Reserve,19/11/2014,99026,207.90,CUMBRIAN NEWSPAPERS LIMITED,A00869,8,2014
Allerdale Borough Council,14202,Transport,Customer & Transformation Programme,Hire Car and petrol,05/11/2014,99027,28.50,EILBECK RENTAL,A01161,8,2014
Allerdale Borough Council,12103,Premises,Coastal Protection and Inland Flooding,Grounds Maintenance,26/11/2014,99028,3897.40,EYE MARINE LTD,A01094,8,2014
Allerdale Borough Council,10401,Employee Costs,IT - New Initiatives,Agency Staff Costs,03/12/2014,99029,1462.50,HAYS SPECIALIST RECRUITMENT LTD,A00280,8,2014
Allerdale Borough Council,15503,Supplies & Services,Legal Services,Court and Tribunal Costs,05/11/2014,99030,70.00,HMCTS,A01237,8,2014
Allerdale Borough Council,15503,Supplies & Services,Legal Services,Court and Tribunal Costs,05/11/2014,99031,265.00,HMCTS,A01237,8,2014
Allerdale Borough Council,15502,Supplies & Services,Legal Services,Land Registry Fees,04/11/2014,99032,21.00,HM LAND REGISTRY,A00505,8,2014
Allerdale Borough Council,54105,Capital Expenditure,Cluster of Empty Homes,Grants  Private Individuals (Capital),05/11/2014,99033,398.70,Redacted information - included personal information ,M00567,8,2014
Allerdale Borough Council,54105,Capital Expenditure,Disabled Facilities Grants,Grants  Private Individuals (Capital),05/11/2014,99034,3605.00,TOP NOTCH CONTRACTORS LTD,X00165,8,2014
Allerdale Borough Council,54105,Capital Expenditure,Cluster of Empty Homes,Grants  Private Individuals (Capital),05/11/2014,99035,6500.00,Redacted information - included personal information ,X00232,8,2014
Allerdale Borough Council,15506,Supplies & Services,Arts Development,Professional Services,05/11/2014,99036,100.00,Redacted information - included personal information ,M00651,8,2014
Allerdale Borough Council,15501,Supplies & Services,Human Resources Pay Group,Consultants Fees,12/11/2014,99037,763.50,ADECCO RECRUITMENT,A00188,8,2014
Allerdale Borough Council,15501,Supplies & Services,Human Resources Pay Group,Consultants Fees,12/11/2014,99038,763.50,ADECCO RECRUITMENT,A00188,8,2014
Allerdale Borough Council,15501,Supplies & Services,Human Resources Pay Group,Consultants Fees,12/11/2014,99039,572.63,ADECCO RECRUITMENT,A00188,8,2014
Allerdale Borough Council,15501,Supplies & Services,Human Resources Pay Group,Consultants Fees,12/11/2014,99040,190.88,ADECCO RECRUITMENT,A00188,8,2014
Allerdale Borough Council,15506,Supplies & Services,Corporate Improvement Team,Professional Services,12/11/2014,99041,354.88,SOUTH LAKELAND DISTRICT COUNCIL,A00569,8,2014
Allerdale Borough Council,10401,Employee Costs,Carnegie Theatre,Agency Staff Costs,12/11/2014,99042,688.50,ADECCO RECRUITMENT,A00188,8,2014
Allerdale Borough Council,14202,Transport,Localities & Partnerships,Hire Car and petrol,19/11/2014,99043,88.69,ENTERPRISE RENT A CAR,A01367,8,2014
Allerdale Borough Council,10401,Employee Costs,Carnegie Theatre,Agency Staff Costs,12/11/2014,99044,567.00,ADECCO RECRUITMENT,A00188,8,2014
Allerdale Borough Council,15101,Supplies & Services,Weekly Collection Support Scheme,Equipment Costs,26/11/2014,99045,58.80,EGBERT H TAYLOR & COMPANY LTD,A01706,8,2014
Allerdale Borough Council,12202,Premises,Corporate Property Maintenance,Electrical Repairs and Service,12/11/2014,99046,73.68,EDMUNDSON ELECTRICAL LTD,A00304,8,2014
Allerdale Borough Council,15501,Supplies & Services,Food and Occupational Health,Consultants Fees,12/11/2014,99047,660.00,Redacted information - included personal information ,A01969,8,2014
Allerdale Borough Council,15501,Supplies & Services,Building Control - Non-Chargeable,Consultants Fees,19/11/2014,99048,499.00,LABC DISTRICT SURVEYORS ASSOCIATION,A00308,8,2014
Allerdale Borough Council,10401,Employee Costs,Planning and Development,Agency Staff Costs,12/11/2014,99049,472.49,ADECCO RECRUITMENT,A00188,8,2014
Allerdale Borough Council,15507,Supplies & Services,Land Charges Service,Searches,12/11/2014,99050,1198.70,CUMBRIA CC - GENERAL,A00066,8,2014
Allerdale Borough Council,15507,Supplies & Services,Land Charges Service,Searches,12/11/2014,99051,3660.60,CUMBRIA CC - GENERAL,A00066,8,2014
Allerdale Borough Council,15507,Supplies & Services,Land Charges Service,Searches,12/11/2014,99052,3346.10,CUMBRIA CC - GENERAL,A00066,8,2014
Allerdale Borough Council,15104,Supplies & Services,Bereavement Services,Supplies for Resale,12/11/2014,99053,122.00,GRANART,A00644,8,2014
Allerdale Borough Council,15401,Supplies & Services,Document Management Pay Group,General Stationery,26/11/2014,99054,298.50,ANTALIS,A00122,8,2014
Allerdale Borough Council,15812,Supplies & Services,IT Services,Software Development,12/11/2014,99055,609.00,CIVICA UK LIMITED,A00006,8,2014
Allerdale Borough Council,15506,Supplies & Services,Revs & Bens Transformation Project,Professional Services,26/11/2014,99056,10625.01,LIBERATA UK LTD,C00122,8,2014
Allerdale Borough Council,15510,Supplies & Services,Confidential Waste,Disposal of Waste,26/11/2014,99057,326.25,J DUFFY LTD T/A PW CONF BUS SERVICES,A01846,8,2014
Allerdale Borough Council,15506,Supplies & Services,Allerdale Investment Partnership,Professional Services,26/11/2014,99058,462.00,FREETH CARTWRIGHT LLP,A01821,8,2014
Allerdale Borough Council,15302,Supplies & Services,Housing Services Pay Group,Protective Clothing,12/11/2014,99059,45.00,THOMAS ARMSTRONG - LINDEN/KAYTOOLS,A00091,8,2014
Allerdale Borough Council,10601,Employee Costs,Solway Wetlands Project,External Courses & Seminar Fees,12/11/2014,99060,95.00,LAKES FIRST AID,A02016,8,2014
Allerdale Borough Council,15812,Supplies & Services,IT Services,Software Development,26/11/2014,99061,5150.00,ASTUN TECHNOLOGY LIMITED,A01234,8,2014
Allerdale Borough Council,21100,Transfer Payments,Hadrians Wall,Budget-Grants Paid,12/11/2014,99062,10000.00,NORTHUMBERLAND COUNTY COUNCIL,A01867,8,2014
Allerdale Borough Council,20102,Third Party Payments,Recycling,Horticulture (Obsolete),12/11/2014,99063,115.00,THOMPSONS PLANT HIRE LTD,A00262,8,2014
Allerdale Borough Council,20102,Third Party Payments,Recycling,Horticulture (Obsolete),12/11/2014,99064,309.50,THOMPSONS PLANT HIRE LTD,A00262,8,2014
Allerdale Borough Council,15505,Supplies & Services,Legal Services,Licences,,99065,318.50,INSTITUTE OF LEGAL EXECUTIVES,A00711,8,2014
Allerdale Borough Council,16004,Supplies & Services,Banking and Interest,All Pay Transaction Costs,12/11/2014,99066,53.90,ALLPAY.NET LIMITED,A00714,8,2014
Allerdale Borough Council,16004,Supplies & Services,Banking and Interest,All Pay Transaction Costs,12/11/2014,99067,33.99,ALLPAY.NET LIMITED,A00714,8,2014
Allerdale Borough Council,16004,Supplies & Services,Banking and Interest,All Pay Transaction Costs,12/11/2014,99068,1540.82,ALLPAY.NET LIMITED,A00714,8,2014
Allerdale Borough Council,16004,Supplies & Services,Banking and Interest,All Pay Transaction Costs,12/11/2014,99069,19.24,ALLPAY.NET LIMITED,A00714,8,2014
Allerdale Borough Council,16004,Supplies & Services,Banking and Interest,All Pay Transaction Costs,12/11/2014,99070,20.63,ALLPAY.NET LIMITED,A00714,8,2014
Allerdale Borough Council,16004,Supplies & Services,Banking and Interest,All Pay Transaction Costs,12/11/2014,99071,17.50,ALLPAY.NET LIMITED,A00714,8,2014
Allerdale Borough Council,16004,Supplies & Services,Banking and Interest,All Pay Transaction Costs,12/11/2014,99072,18.37,ALLPAY.NET LIMITED,A00714,8,2014
Allerdale Borough Council,16004,Supplies & Services,Banking and Interest,All Pay Transaction Costs,12/11/2014,99073,21.39,ALLPAY.NET LIMITED,A00714,8,2014
Allerdale Borough Council,16004,Supplies & Services,Banking and Interest,All Pay Transaction Costs,12/11/2014,99074,24.93,ALLPAY.NET LIMITED,A00714,8,2014
Allerdale Borough Council,16004,Supplies & Services,Banking and Interest,All Pay Transaction Costs,12/11/2014,99075,30.95,ALLPAY.NET LIMITED,A00714,8,2014
Allerdale Borough Council,20150,Third Party Payments,Off-street - Managed,General Partnership Service Fees,12/11/2014,99076,81401.85,E H BOOTH & CO LIMITED,A00919,8,2014
Allerdale Borough Council,20150,Third Party Payments,Off-street - Managed,General Partnership Service Fees,12/11/2014,99077,94514.90,E H BOOTH & CO LIMITED,A00919,8,2014
Allerdale Borough Council,15201,Supplies & Services,Chief Executive,Entertainment Of Visitors,,99078,538.11,BARCLAYCARD COMMERCIAL,X00207,8,2014
Allerdale Borough Council,10600,Employee Costs,Training,Budget-Training,12/11/2014,99079,344.00,FERRET INFORMATION SYSTEMS LTD,A02057,8,2014
Allerdale Borough Council,15501,Supplies & Services,Food and Occupational Health,Consultants Fees,19/11/2014,99080,112.77,PUBLIC HEALTH ENGLAND,A01839,8,2014
Allerdale Borough Council,15401,Supplies & Services,Document Management Pay Group,General Stationery,26/11/2014,99081,50.30,ANTALIS,A00122,8,2014
Allerdale Borough Council,15802,Supplies & Services,Parking Services Pay Group,Hardware Maintenance,12/11/2014,99082,58.08,RELIANCE HIGH-TECH LTD,C00123,8,2014
Allerdale Borough Council,16102,Supplies & Services,Town Centre Management,Regeneration Initiatives,12/11/2014,99083,36.05,MRS WILSON'S COFFEE HOUSE & EATERIE,A02039,8,2014
Allerdale Borough Council,12408,Premises,Corporate Property Maintenance,Water & Sewage,12/11/2014,99084,50.51,UNITED UTILITIES,X00011,8,2014
Allerdale Borough Council,10401,Employee Costs,Elections,Agency Staff Costs,12/11/2014,99085,11606.48,ASSOCIATION OF ELECTORAL ADMIN,A00189,8,2014
Allerdale Borough Council,10202,Employee Costs,Human Resources Pay Group,Medical Screening,12/11/2014,99086,257.50,WELLWORK LTD,A00029,8,2014
Allerdale Borough Council,10401,Employee Costs,Elections,Agency Staff Costs,12/11/2014,99087,2396.00,SELLICK PARTNERSHIP,A01993,8,2014
Allerdale Borough Council,10401,Employee Costs,Elections,Agency Staff Costs,19/11/2014,99088,1929.50,SELLICK PARTNERSHIP,A01993,8,2014
Allerdale Borough Council,16150,Supplies & Services,Solway AONB Other Projects,General Promotions,26/11/2014,99089,120.00,WEST HOUSE,A02020,8,2014
Allerdale Borough Council,16150,Supplies & Services,Town Centre Management,General Promotions,03/12/2014,99090,60.00,FLAME CONCEPTS LTD,A01903,8,2014
Allerdale Borough Council,16150,Supplies & Services,"The Hub, Workington Town Centre",General Promotions,26/11/2014,99091,100.00,Redacted information - included personal information ,A01408,8,2014
Allerdale Borough Council,15103,Supplies & Services,Parking Services Pay Group,Purchase of Materials,26/11/2014,99092,845.00,NAGELS UK LTD,A01182,8,2014
Allerdale Borough Council,15802,Supplies & Services,Shared ICT Costs,Hardware Maintenance,03/12/2014,99093,15255.14,NETCENTRIX LIMITED,A00106,8,2014
Allerdale Borough Council,15505,Supplies & Services,Planning and Development,Licences,26/11/2014,99094,95.01,CENTREMAPS,A00512,8,2014
Allerdale Borough Council,15811,Supplies & Services,Shared ICT Costs,Software Maintenance,03/12/2014,99095,3940.48,NETCENTRIX LIMITED,A00106,8,2014
Allerdale Borough Council,15802,Supplies & Services,Shared ICT Costs,Hardware Maintenance,03/12/2014,99096,15255.14,NETCENTRIX LIMITED,A00106,8,2014
Allerdale Borough Council,15811,Supplies & Services,Shared ICT Costs,Software Maintenance,03/12/2014,99097,3940.48,NETCENTRIX LIMITED,A00106,8,2014
Allerdale Borough Council,16102,Supplies & Services,Heat Exchange Network,Regeneration Initiatives,26/11/2014,99098,25295.49,LAND & WATER RESOURCE CONSULTANTS LTD,A02087,8,2014
Allerdale Borough Council,10600,Employee Costs,Training,Budget-Training,12/11/2014,99099,200.00,SGL TRAINING LTD,A00355,8,2014
Allerdale Borough Council,16102,Supplies & Services,Mary Portas - Wigton,Regeneration Initiatives,03/12/2014,99100,500.00,SOLWAY PLAIN FUTURES LTD,A01194,8,2014
Allerdale Borough Council,16102,Supplies & Services,Mary Portas - Wigton,Regeneration Initiatives,26/11/2014,99101,500.00,SOLWAY PLAIN FUTURES LTD,A01194,8,2014
Allerdale Borough Council,73102,Holding and Control Accounts,Busy Bees Childcare Scheme,Holding Accounts General - Expenditure,19/11/2014,99102,1084.00,COMPUTERSHARE VOUCHER SERVICES,A00991,8,2014
Allerdale Borough Council,73102,Holding and Control Accounts,Busy Bees Childcare Scheme,Holding Accounts General - Expenditure,19/11/2014,99103,59.62,COMPUTERSHARE VOUCHER SERVICES,A00991,8,2014
Allerdale Borough Council,15501,Supplies & Services,Environmental Protection,Consultants Fees,19/11/2014,99104,800.00,FILLERY ACOUSTICS,A01570,8,2014
Allerdale Borough Council,15401,Supplies & Services,Document Management Pay Group,General Stationery,26/11/2014,99105,39.70,LYRECO,A00043,8,2014
Allerdale Borough Council,12201,Premises,Public Convenience Cleaning,Internal Maintenance,12/11/2014,99106,956.00,Redacted information - included personal information ,C00008,8,2014
Allerdale Borough Council,16150,Supplies & Services,"The Hub, Workington Town Centre",General Promotions,12/11/2014,99107,552.00,Redacted information - included personal information ,M00652,8,2014
Allerdale Borough Council,16150,Supplies & Services,Solway Wetlands Project,General Promotions,12/11/2014,99108,44.64,Redacted information - included personal information ,M00645,8,2014
Allerdale Borough Council,33112,Income,Planning and Development,Planning Fees Income,12/11/2014,99109,80.00,ATLAS CONCRETE,M00653,8,2014
Allerdale Borough Council,54105,Capital Expenditure,Disabled Facilities Grants,Grants  Private Individuals (Capital),12/11/2014,99110,17825.00,K BAILIFF & SON LIMITED,X00116,8,2014
Allerdale Borough Council,16102,Supplies & Services,Town Centre Management,Regeneration Initiatives,12/11/2014,99111,273.25,WIGTON TOWN COUNCIL,X00099,8,2014
Allerdale Borough Council,10201,Employee Costs,Planning and Development,Long Service Awards,12/11/2014,99112,260.00,Redacted information - included personal information ,M00654,8,2014
Allerdale Borough Council,15402,Supplies & Services,Customer Contact Centre,Photocopier Charges,26/11/2014,99113,0.41,KONICA MINOLTA BUSINESS SOLUTIONS UK LTD,A01556,8,2014
Allerdale Borough Council,15103,Supplies & Services,KMAG Enhancement Activity,Purchase of Materials,26/11/2014,99114,52.00,YORKSHIRE PURCHASING ORGANISATION,A00747,8,2014
Allerdale Borough Council,10401,Employee Costs,Housing Services Pay Group,Agency Staff Costs,12/11/2014,99115,780.57,TEDGEM INVESTMENTS LTD,A01962,8,2014
Allerdale Borough Council,15502,Supplies & Services,Legal Services,Land Registry Fees,12/11/2014,99116,40.00,HM LAND REGISTRY,A00834,8,2014
Allerdale Borough Council,15604,Supplies & Services,Document Management Pay Group,Franking Machine refills,12/11/2014,99117,10000.00,FP TELESET,A00428,8,2014
Allerdale Borough Council,14101,Transport,Homelessness,Vehicle Leasing,12/11/2014,99118,171.74,DOBIES VAUXHALL,A00254,8,2014
Allerdale Borough Council,12103,Premises,Coastal Protection and Inland Flooding,Grounds Maintenance,12/11/2014,99119,1288.00,FIRTH FABRICATION SERVICES,C00020,8,2014
Allerdale Borough Council,49983,Recharges,Electoral Registration,Postal & Printing Services (Indirect),12/11/2014,99120,348.30,PRINT IMAGE NETWORK LIMITED (POSTAGE),A01782,8,2014
Allerdale Borough Council,15101,Supplies & Services,Homelessness,Equipment Costs,12/11/2014,99121,170.00,IMPACT HOUSING ASSOCIATION LTD,A00236,8,2014
Allerdale Borough Council,16150,Supplies & Services,Solway Wetlands Project,General Promotions,12/11/2014,99122,370.00,Redacted information - included personal information ,M00312,8,2014
Allerdale Borough Council,15401,Supplies & Services,Building Control - Chargeable,General Stationery,19/11/2014,99123,69.94,HEATONS OFFICE SOLUTION (PREV LAKELAND/INTEGRITY),A00069,8,2014
Allerdale Borough Council,10600,Employee Costs,Training,Budget-Training,12/11/2014,99124,432.36,INNOVATION CENTRAL LTD,A02081,8,2014
Allerdale Borough Council,15550,Supplies & Services,Supporting Festivals and Community Event,General-Service Related Fees,26/11/2014,99125,10000.00,CUMBRIAN SPAA FOUNDATION LTD,A01868,8,2014
Allerdale Borough Council,15103,Supplies & Services,Arts Development,Purchase of Materials,12/11/2014,99126,1464.30,THE SOLWAY CATERING COMPANY LTD,A01902,8,2014
Allerdale Borough Council,15301,Supplies & Services,Environmental Services Pay Group,Uniforms,26/11/2014,99127,77.97,ARCO LIMITED,A00045,8,2014
Allerdale Borough Council,15301,Supplies & Services,Environmental Services Pay Group,Uniforms,26/11/2014,99128,100.00,ARCO LIMITED,A00045,8,2014
Allerdale Borough Council,26000,Earmarked Reserves,Mary Portas - Maryport,Budget-Expd funded from Reserve,03/12/2014,99129,1500.00,Redacted information - included personal information ,A01850,8,2014
Allerdale Borough Council,15501,Supplies & Services,Delivering Jobs and Growth,Consultants Fees,12/11/2014,99130,1350.00,LAND + PLACE LTD,A02050,8,2014
Allerdale Borough Council,15501,Supplies & Services,Delivering Jobs and Growth,Consultants Fees,12/11/2014,99131,1485.00,LAND + PLACE LTD,A02050,8,2014
Allerdale Borough Council,10602,Employee Costs,Apprentices & Graduates,Post Entry Training,03/12/2014,99132,2250.00,IMPROVEMENT & DEVELOPMENT AGENCY,A00484,8,2014
Allerdale Borough Council,15102,Supplies & Services,Domestic Waste,Equipment Repair & Maintenance,12/11/2014,99133,570.80,Redacted information - included personal information ,A00176,8,2014
Allerdale Borough Council,15501,Supplies & Services,Planning and Development,Consultants Fees,26/11/2014,99134,405.00,KINGS CHAMBERS,A00348,8,2014
Allerdale Borough Council,10401,Employee Costs,Planning and Development,Agency Staff Costs,26/11/2014,99135,1572.50,THE OYSTER PARTNERSHIP LTD,C00118,8,2014
Allerdale Borough Council,14150,Transport,Gates Travel,General-Council Vehicles (Non-Capital),26/11/2014,99136,1503.95,GATES TRAVEL,A01525,8,2014
Allerdale Borough Council,15101,Supplies & Services,Public Convenience Cleaning,Equipment Costs,,99137,85.12,WF HYGIENE & CLEANING SUPPLIES,A01794,8,2014
Allerdale Borough Council,15502,Supplies & Services,Legal Services,Land Registry Fees,11/11/2014,99138,24.00,HM LAND REGISTRY,A00505,8,2014
Allerdale Borough Council,26000,Earmarked Reserves,Anti Poverty,Budget-Expd funded from Reserve,12/11/2014,99139,1900.00,MOORCLOSE COMMUNITY CENTRE,M00102,8,2014
Allerdale Borough Council,15506,Supplies & Services,Communications and Marketing,Professional Services,19/11/2014,99141,675.00,Redacted information - included personal information ,A01869,8,2014
Allerdale Borough Council,15401,Supplies & Services,Document Management Pay Group,General Stationery,26/11/2014,99142,100.97,LYRECO,A00043,8,2014
Allerdale Borough Council,15401,Supplies & Services,Document Management Pay Group,General Stationery,26/11/2014,99143,134.97,LYRECO,A00043,8,2014
Allerdale Borough Council,16100,Supplies & Services,Communications and Marketing,Budget-Advertising and Promotions,19/11/2014,99144,150.00,JIM DAVIS PHOTOGRAPHY,A00627,8,2014
Allerdale Borough Council,15506,Supplies & Services,Legal Services,Professional Services,26/11/2014,99145,7931.00,LONGWORTH FORENSIC ACCOUNTING LTD,A02101,8,2014
Allerdale Borough Council,15603,Supplies & Services,Document Management Pay Group,Franking Machine Costs,26/11/2014,99146,300.00,THE MAILING ROOM (FP EXECUTIVE AGENCY LTD),A00733,8,2014
Allerdale Borough Council,15550,Supplies & Services,Out of Hours Telephones,General-Service Related Fees,26/11/2014,99147,830.95,ORBIS PROTECT LTD (PREV SITEXORBIS LIMITED),A00679,8,2014
Allerdale Borough Council,15401,Supplies & Services,Document Management Pay Group,General Stationery,03/12/2014,99148,199.00,ANTALIS,A00122,8,2014
Allerdale Borough Council,16101,Supplies & Services,Planning and Development,Statutory Notices,19/11/2014,99149,837.65,CUMBRIA CC - 3C STUDIO,A00070,8,2014
Allerdale Borough Council,16101,Supplies & Services,Planning and Development,Statutory Notices,19/11/2014,99150,523.08,CUMBRIA CC - 3C STUDIO,A00070,8,2014
Allerdale Borough Council,10600,Employee Costs,Training,Budget-Training,26/11/2014,99151,41.67,THE CONSERVATION VOLUNTEERS,A02094,8,2014
Allerdale Borough Council,15401,Supplies & Services,Document Management Pay Group,General Stationery,26/11/2014,99152,283.17,LYRECO,A00043,8,2014
Allerdale Borough Council,16101,Supplies & Services,Planning and Development,Statutory Notices,19/11/2014,99153,443.14,CUMBRIA CC - 3C STUDIO,A00070,8,2014
Allerdale Borough Council,15513,Supplies & Services,Environmental Initiatives,Subcontractors - General,26/11/2014,99154,2000.00,Redacted information - included personal information ,A01388,8,2014
Allerdale Borough Council,16301,Supplies & Services,KMAG Enhancement Activity,Reimbursement,19/11/2014,99155,1090.08,KESWICK MUSEUM & ART GALLERY,A00337,8,2014
Allerdale Borough Council,12303,Premises,Carnegie Theatre,Window Cleaning,19/11/2014,99156,39.14,J A LEE WINDOWS,A00051,8,2014
Allerdale Borough Council,15501,Supplies & Services,Planning and Development,Consultants Fees,19/11/2014,99157,127.00,CAPITA (TREE/HEDGEROWS),A00683,8,2014
Allerdale Borough Council,15501,Supplies & Services,Benefits,Consultants Fees,26/11/2014,99158,16.35,TAMESIDE METROPOLITAN BOROUGH COUNCIL,A00231,8,2014
Allerdale Borough Council,14202,Transport,Members Services,Hire Car and petrol,19/11/2014,99159,80.00,KEN ROUTLEDGE TRAVEL LTD,A00192,8,2014
Allerdale Borough Council,15202,Supplies & Services,Carnegie Theatre,Bar Provision,19/11/2014,99160,329.82,C.S. DRINKS LTD,A00005,8,2014
Allerdale Borough Council,14101,Transport,Mayoral Services,Vehicle Leasing,19/11/2014,99161,30.00,ACE TAXIS,A01927,8,2014
Allerdale Borough Council,14101,Transport,Mayoral Services,Vehicle Leasing,19/11/2014,99162,120.00,ACE TAXIS,A01927,8,2014
Allerdale Borough Council,15501,Supplies & Services,Planning and Development,Consultants Fees,19/11/2014,99163,500.00,NO 5 CHAMBERS LTD,A02102,8,2014
Allerdale Borough Council,10401,Employee Costs,Head of Governance,Agency Staff Costs,19/11/2014,99164,1488.47,Redacted information - included personal information ,A01856,8,2014
Allerdale Borough Council,10401,Employee Costs,Head of Governance,Agency Staff Costs,19/11/2014,99165,1205.75,Redacted information - included personal information ,A01856,8,2014
Allerdale Borough Council,10401,Employee Costs,Head of Governance,Agency Staff Costs,19/11/2014,99166,1014.00,Redacted information - included personal information ,A01856,8,2014
Allerdale Borough Council,10401,Employee Costs,Head of Governance,Agency Staff Costs,19/11/2014,99167,945.75,Redacted information - included personal information ,A01856,8,2014
Allerdale Borough Council,10401,Employee Costs,Head of Governance,Agency Staff Costs,03/12/2014,99168,1069.22,Redacted information - included personal information ,A01856,8,2014
Allerdale Borough Council,10401,Employee Costs,Head of Governance,Agency Staff Costs,26/11/2014,99169,1423.50,Redacted information - included personal information ,A01856,8,2014
Allerdale Borough Council,15808,Supplies & Services,IT Services,Computer Consumables,19/11/2014,99170,559.59,MISCO,A00125,8,2014
Allerdale Borough Council,15401,Supplies & Services,Building Control - Non-Chargeable,General Stationery,26/11/2014,99171,9.99,HEATONS OFFICE SOLUTION (PREV LAKELAND/INTEGRITY),A00069,8,2014
Allerdale Borough Council,15803,Supplies & Services,IT Services,Hardware Purchase,19/11/2014,99172,1100.39,MISCO,A00125,8,2014
Allerdale Borough Council,26000,Earmarked Reserves,IER Work - Elections,Budget-Expd funded from Reserve,26/11/2014,99173,1430.00,ASSOCIATION OF ELECTORAL ADMIN,A00189,8,2014
Allerdale Borough Council,14100,Transport,Mayoral Services,Budget-Council Vehicles (Non-capital),19/11/2014,99174,30.00,ACE TAXIS,A01927,8,2014
Allerdale Borough Council,14100,Transport,Mayoral Services,Budget-Council Vehicles (Non-capital),19/11/2014,99175,30.00,ACE TAXIS,A01927,8,2014
Allerdale Borough Council,14100,Transport,Mayoral Services,Budget-Council Vehicles (Non-capital),19/11/2014,99176,30.00,ACE TAXIS,A01927,8,2014
Allerdale Borough Council,15512,Supplies & Services,Animal Welfare,Kennelling,19/11/2014,99177,2641.00,WHINMILL FARM CANINE CENTRE,A00117,8,2014
Allerdale Borough Council,49983,Recharges,Electoral Registration,Postal & Printing Services (Indirect),19/11/2014,99178,961.43,PRINT IMAGE NETWORK LIMITED,A01127,8,2014
Allerdale Borough Council,20102,Third Party Payments,Recycling,Horticulture (Obsolete),19/11/2014,99179,1168.50,THOMPSONS PLANT HIRE LTD,A00262,8,2014
Allerdale Borough Council,20102,Third Party Payments,Recycling,Horticulture (Obsolete),19/11/2014,99180,87.50,THOMPSONS PLANT HIRE LTD,A00262,8,2014
Allerdale Borough Council,20304,Third Party Payments,Recycling,Contract Services-Recycling,19/11/2014,99181,375530.99,FCC ENVIRONMENT SERVICES (FOCSA),A00085,8,2014
Allerdale Borough Council,14100,Transport,Recycling,Budget-Council Vehicles (Non-capital),19/11/2014,99182,85.22,HI-Q TYRESERVICES,A00313,8,2014
Allerdale Borough Council,14100,Transport,Street Cleansing,Budget-Council Vehicles (Non-capital),19/11/2014,99183,42.61,HI-Q TYRESERVICES,A00313,8,2014
Allerdale Borough Council,20102,Third Party Payments,Recycling,Horticulture (Obsolete),19/11/2014,99184,3293.52,FCC RECYCLING (UK) LTD (ALCO),A00185,8,2014
Allerdale Borough Council,20102,Third Party Payments,Recycling,Horticulture (Obsolete),19/11/2014,99185,2126.32,FCC RECYCLING (UK) LTD (ALCO),A00185,8,2014
Allerdale Borough Council,20102,Third Party Payments,Recycling,Horticulture (Obsolete),19/11/2014,99186,2430.32,FCC RECYCLING (UK) LTD (ALCO),A00185,8,2014
Allerdale Borough Council,20102,Third Party Payments,Recycling,Horticulture (Obsolete),19/11/2014,99187,2924.46,FCC RECYCLING (UK) LTD (ALCO),A00185,8,2014
Allerdale Borough Council,20102,Third Party Payments,Recycling,Horticulture (Obsolete),19/11/2014,99188,1714.06,FCC RECYCLING (UK) LTD (ALCO),A00185,8,2014
Allerdale Borough Council,15513,Supplies & Services,Animal Welfare,Subcontractors - General,19/11/2014,99189,159.49,MILLCROFT VETERINARY GROUP,A00211,8,2014
Allerdale Borough Council,15503,Supplies & Services,Legal Services,Court and Tribunal Costs,19/11/2014,99190,325.00,HMCTS - ACCOUNT BY BACS,A01237,8,2014
Allerdale Borough Council,12201,Premises,Homelessness,Internal Maintenance,10/12/2014,99191,182.60,DERWENT & SOLWAY ,A00219,8,2014
Allerdale Borough Council,10401,Employee Costs,Housing Services Pay Group,Agency Staff Costs,19/11/2014,99192,685.86,TEDGEM INVESTMENTS LTD,A01962,8,2014
Allerdale Borough Council,15502,Supplies & Services,Legal Services,Land Registry Fees,14/11/2014,99193,51.00,HM LAND REGISTRY,A00505,8,2014
Allerdale Borough Council,15505,Supplies & Services,Licensing Service,Licences,19/11/2014,99194,42.00,CMRR BAR LTD,M00655,8,2014
Allerdale Borough Council,54105,Capital Expenditure,Disabled Facilities Grants,Grants  Private Individuals (Capital),19/11/2014,99195,4240.00,K BAILIFF & SON LIMITED,X00116,8,2014
Allerdale Borough Council,15201,Supplies & Services,Leaders Services,Entertainment Of Visitors,19/11/2014,99196,56.82,ALLERDALE BOROUGH COUNCIL,X00034,8,2014
Allerdale Borough Council,12402,Premises,Public Convenience Cleaning,Electricity,19/11/2014,99197,17.39,N POWER,X00015,8,2014
Allerdale Borough Council,12402,Premises,Public Convenience Cleaning,Electricity,19/11/2014,99198,657.96,N POWER,X00015,8,2014
Allerdale Borough Council,12402,Premises,Public Convenience Cleaning,Electricity,19/11/2014,99199,281.31,N POWER,X00015,8,2014
Allerdale Borough Council,12402,Premises,Corporate Property Maintenance,Electricity,19/11/2014,99200,2.03,N POWER,X00015,8,2014
Allerdale Borough Council,12402,Premises,Public Convenience Cleaning,Electricity,19/11/2014,99201,86.86,N POWER,X00015,8,2014
Allerdale Borough Council,12402,Premises,Public Convenience Cleaning,Electricity,19/11/2014,99202,28.90,N POWER,X00015,8,2014
Allerdale Borough Council,12402,Premises,Corporate Property Maintenance,Electricity,19/11/2014,99203,17.08,N POWER,X00015,8,2014
Allerdale Borough Council,12402,Premises,Corporate Property Maintenance,Electricity,19/11/2014,99204,13.92,N POWER,X00015,8,2014
Allerdale Borough Council,12402,Premises,Corporate Property Maintenance,Electricity,19/11/2014,99205,11.60,N POWER,X00015,8,2014
Allerdale Borough Council,12402,Premises,Corporate Property Maintenance,Electricity,19/11/2014,99206,10.30,N POWER,X00015,8,2014
Allerdale Borough Council,12402,Premises,Corporate Property Maintenance,Electricity,19/11/2014,99207,-15.93,N POWER,X00015,8,2014
Allerdale Borough Council,12402,Premises,Corporate Property Maintenance,Electricity,19/11/2014,99208,-21.23,N POWER,X00015,8,2014
Allerdale Borough Council,12402,Premises,Corporate Property Maintenance,Electricity,19/11/2014,99209,-11.30,N POWER,X00015,8,2014
Allerdale Borough Council,12402,Premises,Corporate Property Maintenance,Electricity,19/11/2014,99210,-10.30,N POWER,X00015,8,2014
Allerdale Borough Council,12402,Premises,Car Parks Inspection & Maintenance,Electricity,19/11/2014,99211,325.87,N POWER,X00015,8,2014
Allerdale Borough Council,12402,Premises,Car Parks Inspection & Maintenance,Electricity,19/11/2014,99212,85.84,N POWER,X00015,8,2014
Allerdale Borough Council,12402,Premises,Corporate Property Maintenance,Electricity,19/11/2014,99213,239.84,N POWER,X00015,8,2014
Allerdale Borough Council,12402,Premises,Public Convenience Cleaning,Electricity,19/11/2014,99214,4.72,N POWER,X00015,8,2014
Allerdale Borough Council,12303,Premises,Corporate Property Maintenance,Window Cleaning,19/11/2014,99215,239.55,J A LEE WINDOWS,A00051,8,2014
Allerdale Borough Council,15500,Supplies & Services,Disposal of Allerdale Sites,Budget-Services,03/12/2014,99216,315.00,MACDONALD & COMPANY FREELANCE LTD,A01947,8,2014
Allerdale Borough Council,12202,Premises,Public Convenience Cleaning,Electrical Repairs and Service,19/11/2014,99217,1900.80,J & J ELECTRICAL (CUMBRIA) LTD,C00038,8,2014
Allerdale Borough Council,15100,Supplies & Services,Street Cleansing,"Budget-Equipment, Furniture & Materials",10/12/2014,99218,2000.00,PMC POLYTHENE LTD,A00194,8,2014
Allerdale Borough Council,14104,Transport,Asset Management Pay Group,Repairs & Maintenance,19/11/2014,99219,48.48,FCC ENVIRONMENT SERVICES (FOCSA),A00085,8,2014
Allerdale Borough Council,12301,Premises,Carnegie Theatre,Security,19/11/2014,99220,165.00,PM SECURITY,A02111,8,2014
Allerdale Borough Council,12301,Premises,Carnegie Theatre,Security,19/11/2014,99221,210.00,PM SECURITY,A02111,8,2014
Allerdale Borough Council,12301,Premises,Carnegie Theatre,Security,26/11/2014,99222,560.00,PM SECURITY,A02111,8,2014
Allerdale Borough Council,32102,Income,Carnegie Theatre,Catering Income,26/11/2014,99223,146.48,BOOKER CASH & CARRY,A01419,8,2014
Allerdale Borough Council,15514,Supplies & Services,Carnegie Theatre,Public Entertainment,19/11/2014,99224,2154.70,SWEENEY ENTERTAINMENTS,A01774,8,2014
Allerdale Borough Council,15401,Supplies & Services,Solway Coast AONB Core Funding,General Stationery,10/12/2014,99225,52.49,VIKING DIRECT,A00828,8,2014
Allerdale Borough Council,10401,Employee Costs,Planning and Development,Agency Staff Costs,03/12/2014,99226,1593.75,THE OYSTER PARTNERSHIP LTD,C00118,8,2014
Allerdale Borough Council,15203,Supplies & Services,Carnegie Theatre,Catering Costs and Consumables,19/11/2014,99227,268.60,G & M SUPPLIES,A00033,8,2014
Allerdale Borough Council,51101,Capital Expenditure,KMAG Enhancement Project,External Contractor Payments (Capital),19/11/2014,99228,2496.75,MOSEDALE GILLATT,A01020,8,2014
Allerdale Borough Council,12408,Premises,Public Convenience Cleaning,Water & Sewage,19/11/2014,99229,143.10,UNITED UTILITIES,X00011,8,2014
Allerdale Borough Council,12408,Premises,Corporate Property Maintenance,Water & Sewage,19/11/2014,99230,534.63,UNITED UTILITIES,X00011,8,2014
Allerdale Borough Council,12408,Premises,Corporate Property Maintenance,Water & Sewage,19/11/2014,99231,988.11,UNITED UTILITIES,X00011,8,2014
Allerdale Borough Council,12408,Premises,Corporate Property Maintenance,Water & Sewage,19/11/2014,99232,98.25,UNITED UTILITIES,X00011,8,2014
Allerdale Borough Council,12408,Premises,Corporate Property Maintenance,Water & Sewage,19/11/2014,99233,16.03,UNITED UTILITIES,X00011,8,2014
Allerdale Borough Council,12408,Premises,Corporate Property Maintenance,Water & Sewage,19/11/2014,99234,16.49,UNITED UTILITIES,X00011,8,2014
Allerdale Borough Council,12402,Premises,Public Convenience Cleaning,Electricity,19/11/2014,99235,250.96,UNITED UTILITIES,X00011,8,2014
Allerdale Borough Council,12408,Premises,Corporate Property Maintenance,Water & Sewage,19/11/2014,99236,60.20,UNITED UTILITIES,X00011,8,2014
Allerdale Borough Council,12408,Premises,Public Convenience Cleaning,Water & Sewage,19/11/2014,99237,15.68,UNITED UTILITIES,X00011,8,2014
Allerdale Borough Council,12408,Premises,Public Convenience Cleaning,Water & Sewage,19/11/2014,99238,113.76,UNITED UTILITIES,X00011,8,2014
Allerdale Borough Council,12408,Premises,Corporate Property Maintenance,Water & Sewage,19/11/2014,99239,16.81,UNITED UTILITIES,X00011,8,2014
Allerdale Borough Council,15501,Supplies & Services,Planning and Development,Consultants Fees,19/11/2014,99240,290.00,CAPITA (TREE/HEDGEROWS),A00683,8,2014
Allerdale Borough Council,15501,Supplies & Services,Planning and Development,Consultants Fees,19/11/2014,99241,290.00,CAPITA (TREE/HEDGEROWS),A00683,8,2014
Allerdale Borough Council,15506,Supplies & Services,KMAG Enhancement Activity,Professional Services,26/11/2014,99242,180.00,Redacted information - included personal information ,A02063,8,2014
Allerdale Borough Council,15101,Supplies & Services,Recycling,Equipment Costs,19/11/2014,99243,140.00,FIRPRESS PRINTERS,A00063,8,2014
Allerdale Borough Council,15101,Supplies & Services,Weekly Collection Support Scheme,Equipment Costs,10/12/2014,99244,5152.50,PLASTIC OMNIUM URBAN SYSTEMS LTD,A00159,8,2014
Allerdale Borough Council,15101,Supplies & Services,Recycling,Equipment Costs,26/11/2014,99245,625.00,FIRPRESS PRINTERS,A00063,8,2014
Allerdale Borough Council,15804,Supplies & Services,IT Services,Computer Data Lines B.T.,19/11/2014,99246,4469.07,BRITISH TELECOMMUNICATIONS,X00004,8,2014
Allerdale Borough Council,12403,Premises,Corporate Property Maintenance,Gas,19/11/2014,99247,60.43,BRITISH GAS,X00039,8,2014
Allerdale Borough Council,12408,Premises,Public Convenience Cleaning,Water & Sewage,19/11/2014,99248,511.57,UNITED UTILITIES,X00011,8,2014
Allerdale Borough Council,12408,Premises,Public Convenience Cleaning,Water & Sewage,19/11/2014,99249,251.17,UNITED UTILITIES,X00011,8,2014
Allerdale Borough Council,12408,Premises,Public Convenience Cleaning,Water & Sewage,19/11/2014,99250,23.35,UNITED UTILITIES,X00011,8,2014
Allerdale Borough Council,12408,Premises,Corporate Property Maintenance,Water & Sewage,19/11/2014,99251,22.90,UNITED UTILITIES,X00011,8,2014
Allerdale Borough Council,12408,Premises,Corporate Property Maintenance,Water & Sewage,19/11/2014,99252,14.06,UNITED UTILITIES,X00011,8,2014
Allerdale Borough Council,12408,Premises,Corporate Property Maintenance,Water & Sewage,19/11/2014,99253,13.95,UNITED UTILITIES,X00011,8,2014
Allerdale Borough Council,15506,Supplies & Services,KMAG Enhancement Activity,Professional Services,19/11/2014,99254,290.00,CHARLIE HEDLEY PHOTOGRAPHY,A00247,8,2014
Allerdale Borough Council,15812,Supplies & Services,IT Services,Software Development,19/11/2014,99255,-4855.53,CIVICA UK LIMITED,A00006,8,2014
Allerdale Borough Council,15812,Supplies & Services,IT Services,Software Development,19/11/2014,99256,4855.53,CIVICA UK LIMITED,A00006,8,2014
Allerdale Borough Council,15812,Supplies & Services,IT Services,Software Development,26/11/2014,99257,-9166.67,CIVICA UK LIMITED,A00006,8,2014
Allerdale Borough Council,15812,Supplies & Services,IT Services,Software Development,19/11/2014,99258,9166.67,CIVICA UK LIMITED,A00006,8,2014
Allerdale Borough Council,54105,Capital Expenditure,Disabled Facilities Grants,Grants  Private Individuals (Capital),19/11/2014,99259,550.00,CONISTON CONSULTANTS LTD,X00210,8,2014
Allerdale Borough Council,54105,Capital Expenditure,Cluster of Empty Homes,Grants  Private Individuals (Capital),19/11/2014,99260,2758.37,Redacted information - included personal information ,M00656,8,2014
Allerdale Borough Council,70104,VAT,VAT Control Account,VAT - 20%,19/11/2014,99261,1343.82,WORKINGTON PLAYGOERS,M00028,8,2014
Allerdale Borough Council,33112,Income,Planning and Development,Planning Fees Income,19/11/2014,99262,110.00,PEARCE SIGNS LTD,M00657,8,2014
Allerdale Borough Council,12302,Premises,Carnegie Theatre,Building Cleaning,26/11/2014,99263,111.76,CATERITE FOOD & WINE SERVICE,A00210,8,2014
Allerdale Borough Council,12302,Premises,Carnegie Theatre,Building Cleaning,26/11/2014,99264,97.16,CATERITE FOOD & WINE SERVICE,A00210,8,2014
Allerdale Borough Council,15401,Supplies & Services,Carnegie Theatre,General Stationery,26/11/2014,99265,116.41,LYRECO,A00043,8,2014
Allerdale Borough Council,15202,Supplies & Services,Carnegie Theatre,Bar Provision,26/11/2014,99266,21.89,SOLWAY HEATERS LTD,A00305,8,2014
Allerdale Borough Council,15202,Supplies & Services,Carnegie Theatre,Bar Provision,26/11/2014,99267,1496.74,CLASSIC DRINKS LIMITED,A00413,8,2014
Allerdale Borough Council,15202,Supplies & Services,Carnegie Theatre,Bar Provision,03/12/2014,99268,318.12,MITCHELL KRAUSE BREWING LTD,A01861,8,2014
Allerdale Borough Council,15810,Supplies & Services,Carnegie Theatre,Software Licences,03/12/2014,99269,19.68,TICKETS.COM LTD,A00371,8,2014
Allerdale Borough Council,15202,Supplies & Services,Carnegie Theatre,Bar Provision,26/11/2014,99270,6.83,SOLWAY HEATERS LTD,A00305,8,2014
Allerdale Borough Council,15506,Supplies & Services,Finance and Accounting Pay Group,Professional Services,03/12/2014,99271,75.84,DUN & BRADSTREET LTD,A01699,8,2014
Allerdale Borough Council,10401,Employee Costs,IT - New Initiatives,Agency Staff Costs,10/12/2014,99272,1137.50,HAYS SPECIALIST RECRUITMENT LTD,A00280,8,2014
Allerdale Borough Council,16350,Supplies & Services,Chief Executive,Miscellaneous Expenses,26/11/2014,99273,68.50,FIRPRESS PRINTERS,A00063,8,2014
Allerdale Borough Council,15811,Supplies & Services,IT Services,Software Maintenance,03/11/2014,99274,140.00,SAGE (UK) LTD,A01911,8,2014
Allerdale Borough Council,15550,Supplies & Services,Carnegie Theatre,General-Service Related Fees,26/11/2014,99275,14.40,TRANSACTION NETWORK SERVICES (UK) LTD,A01778,8,2014
Allerdale Borough Council,15810,Supplies & Services,Carnegie Theatre,Software Licences,10/12/2014,99276,34.44,TICKETS.COM LTD,A00371,8,2014
Allerdale Borough Council,15202,Supplies & Services,Carnegie Theatre,Bar Provision,19/11/2014,99277,211.75,BOOKER CASH & CARRY ,A01419,8,2014
Allerdale Borough Council,15202,Supplies & Services,Carnegie Theatre,Bar Provision,04/11/2014,99278,408.11,BOOKER CASH & CARRY ,A01419,8,2014
Allerdale Borough Council,14101,Transport,Shared IT Services Pay Group,Vehicle Leasing,,99279,199.00,ARNOLD CLARK AUTOMOBILES LTD,A01551,8,2014
Allerdale Borough Council,15813,Supplies & Services,Banking and Interest,Software Miscellaneous,26/11/2014,99280,750.00,TRAFFORD COUNCIL (SPENDPRO),A01812,8,2014
Allerdale Borough Council,15802,Supplies & Services,Parking Services Pay Group,Hardware Maintenance,03/12/2014,99281,3390.33,CHIPSIDE LIMITED,A00004,8,2014
Allerdale Borough Council,10401,Employee Costs,Elections,Agency Staff Costs,26/11/2014,99282,1491.50,SELLICK PARTNERSHIP,A01993,8,2014
Allerdale Borough Council,15811,Supplies & Services,Parking Services Pay Group,Software Maintenance,03/12/2014,99283,3390.00,CHIPSIDE LIMITED,A00004,8,2014
Allerdale Borough Council,14104,Transport,Parking Services Pay Group,Repairs & Maintenance,26/11/2014,99284,44.00,HI-Q TYRESERVICES,A00313,8,2014
Allerdale Borough Council,15402,Supplies & Services,Customer Services Pay Group,Photocopier Charges,03/12/2014,99285,12.97,RICOH UK LTD,A00037,8,2014
Allerdale Borough Council,12101,Premises,Car Parks Inspection & Maintenance,External Maintenance & Decoration,26/11/2014,99286,1222.00,Redacted information - included personal information ,C00008,8,2014
Allerdale Borough Council,12101,Premises,Corporate Property Maintenance,External Maintenance & Decoration,26/11/2014,99287,880.00,Redacted information - included personal information ,C00008,8,2014
Allerdale Borough Council,15811,Supplies & Services,IT Services,Software Maintenance,,99288,1430.92,HALAROSE LIMITED,A00012,8,2014
Allerdale Borough Council,15804,Supplies & Services,IT Services,Computer Data Lines B.T.,26/11/2014,99289,2619.54,VODAFONE (PREV CABLE & WIRELESS),A00934,8,2014
Allerdale Borough Council,12402,Premises,Corporate Property Maintenance,Electricity,26/11/2014,99290,2111.20,N POWER,X00015,8,2014
Allerdale Borough Council,12402,Premises,Corporate Property Maintenance,Electricity,26/11/2014,99291,1486.08,N POWER,X00015,8,2014
Allerdale Borough Council,12408,Premises,Carnegie Theatre,Water & Sewage,26/11/2014,99292,2104.90,UNITED UTILITIES,X00011,8,2014
Allerdale Borough Council,12402,Premises,Footways,Electricity,26/11/2014,99293,5124.08,N POWER ,X00015,8,2014
Allerdale Borough Council,15808,Supplies & Services,Off-street - Owned,Computer Consumables,26/11/2014,99294,417.59,COBALT TELEPHONE TECHNOLOGY,A01008,8,2014
Allerdale Borough Council,15805,Supplies & Services,IT Services,Computer Network,10/12/2014,99295,30.00,THUS/DEMON PLC/ (VODAFONE),A00598,8,2014
Allerdale Borough Council,12402,Premises,Corporate Property Maintenance,Electricity,26/11/2014,99296,3799.60,N POWER,X00015,8,2014
Allerdale Borough Council,35106,Income,Homelessness,Dwellings Income,26/11/2014,99297,21.53,ALLERDALE - CASH OFFICE,A00342,8,2014
Allerdale Borough Council,15501,Supplies & Services,Revenue,Consultants Fees,26/11/2014,99298,75.00,ROSSENDALES LTD,A00964,8,2014
Allerdale Borough Council,15103,Supplies & Services,Health and Safety,Purchase of Materials,26/11/2014,99299,47.41,POSTURITE (UK) LTD,A00336,8,2014
Allerdale Borough Council,15101,Supplies & Services,Carnegie Theatre,Equipment Costs,03/12/2014,99300,39.49,VIKING DIRECT,A00828,8,2014
Allerdale Borough Council,15301,Supplies & Services,Parking Services Pay Group,Uniforms,26/11/2014,99301,936.05,KELTIC,A00017,8,2014
Allerdale Borough Council,12403,Premises,Homelessness,Gas,26/11/2014,99302,95.00,MEPOS LIMITED,A01286,8,2014
Allerdale Borough Council,15101,Supplies & Services,Off-street - Owned,Equipment Costs,26/11/2014,99303,845.66,AMCOR FLEXIBLES CUMBRIA,A00467,8,2014
Allerdale Borough Council,12104,Premises,Parks Development,Playground Equipment,10/12/2014,99304,968.70,PLAY & LEISURE,A01569,8,2014
Allerdale Borough Council,15904,Supplies & Services,Members Services,Training,10/12/2014,99305,62.80,ENTERPRISE RENT A CAR,A01367,8,2014
Allerdale Borough Council,14202,Transport,Chief Executive,Hire Car and petrol,03/12/2014,99306,210.69,ENTERPRISE RENT A CAR,A01367,8,2014
Allerdale Borough Council,14101,Transport,Mayoral Services,Vehicle Leasing,26/11/2014,99307,40.00,ACE TAXIS,A01927,8,2014
Allerdale Borough Council,14100,Transport,Mayoral Services,Budget-Council Vehicles (Non-capital),26/11/2014,99308,15.00,ACE TAXIS,A01927,8,2014
Allerdale Borough Council,14100,Transport,Mayoral Services,Budget-Council Vehicles (Non-capital),26/11/2014,99309,355.00,ACE TAXIS,A01927,8,2014
Allerdale Borough Council,15101,Supplies & Services,Coastal Protection and Inland Flooding,Equipment Costs,03/12/2014,99310,4.99,ARCO LIMITED - CARLISLE,A01448,8,2014
Allerdale Borough Council,15101,Supplies & Services,Coastal Protection and Inland Flooding,Equipment Costs,03/12/2014,99311,37.03,ARCO LIMITED - CARLISLE,A01448,8,2014
Allerdale Borough Council,15101,Supplies & Services,Coastal Protection and Inland Flooding,Equipment Costs,03/12/2014,99312,171.62,ARCO LIMITED - CARLISLE,A01448,8,2014
Allerdale Borough Council,10401,Employee Costs,Head of Governance,Agency Staff Costs,10/12/2014,99313,238.70,VENN GROUP,A01836,8,2014
Allerdale Borough Council,10401,Employee Costs,Head of Governance,Agency Staff Costs,10/12/2014,99314,294.67,VENN GROUP,A01836,8,2014
Allerdale Borough Council,10401,Employee Costs,Head of Governance,Agency Staff Costs,10/12/2014,99315,187.21,VENN GROUP,A01836,8,2014
Allerdale Borough Council,10401,Employee Costs,Head of Governance,Agency Staff Costs,10/12/2014,99316,200.72,VENN GROUP,A01836,8,2014
Allerdale Borough Council,10401,Employee Costs,Head of Governance,Agency Staff Costs,10/12/2014,99317,281.78,VENN GROUP,A01836,8,2014
Allerdale Borough Council,10401,Employee Costs,Head of Governance,Agency Staff Costs,10/12/2014,99318,211.68,VENN GROUP,A01836,8,2014
Allerdale Borough Council,15550,Supplies & Services,Out of Hours Telephones,General-Service Related Fees,26/11/2014,99319,19.80,ORBIS PROTECT LTD (PREV SITEXORBIS LIMITED),A00679,8,2014
Allerdale Borough Council,10202,Employee Costs,Human Resources Pay Group,Medical Screening,10/12/2014,99320,424.36,WELLWORK LTD,A00029,8,2014
Allerdale Borough Council,10202,Employee Costs,Human Resources Pay Group,Medical Screening,10/12/2014,99321,57.50,WELLWORK LTD,A00029,8,2014
Allerdale Borough Council,15506,Supplies & Services,Communications and Marketing,Professional Services,10/12/2014,99322,340.00,LAKES PR LIMITED,A01912,8,2014
Allerdale Borough Council,10401,Employee Costs,Elections,Agency Staff Costs,03/12/2014,99323,1400.50,SELLICK PARTNERSHIP,A01993,8,2014
Allerdale Borough Council,15203,Supplies & Services,Carnegie Theatre,Catering Costs and Consumables,26/11/2014,99324,284.00,G & M SUPPLIES,A00033,8,2014
Allerdale Borough Council,15506,Supplies & Services,Contaminated Land Works,Professional Services,26/11/2014,99325,54810.00,HYDROCK CONTRACTING LTD T/A QDS REMEDIATION,C00151,8,2014
Allerdale Borough Council,15803,Supplies & Services,Planning Service Del Improvement,Hardware Purchase,,99326,145.90,MISCO,A00125,8,2014
Allerdale Borough Council,15803,Supplies & Services,Planning Service Del Improvement,Hardware Purchase,,99327,2254.05,MISCO,A00125,8,2014
Allerdale Borough Council,15803,Supplies & Services,Planning Service Del Improvement,Hardware Purchase,26/11/2014,99328,742.20,MISCO,A00125,8,2014
Allerdale Borough Council,15507,Supplies & Services,Shared Revs & Bens,Searches,26/11/2014,99329,104241.67,CARLISLE CITY COUNCIL,A00161,8,2014
Allerdale Borough Council,15507,Supplies & Services,Shared Revs & Bens,Searches,26/11/2014,99330,104241.67,CARLISLE CITY COUNCIL,A00161,8,2014
Allerdale Borough Council,15405,Supplies & Services,Individual Elector Registration,Use of External Printers,26/11/2014,99331,1384.96,PRINT IMAGE NETWORK LIMITED,A01127,8,2014
Allerdale Borough Council,15405,Supplies & Services,Individual Elector Registration,Use of External Printers,26/11/2014,99332,1226.30,PRINT IMAGE NETWORK LIMITED,A01127,8,2014
Allerdale Borough Council,15400,Supplies & Services,Electoral Registration,"Budget-Printing,Stationery & Office Supp",26/11/2014,99333,711.00,PRINT IMAGE NETWORK LIMITED,A01127,8,2014
Allerdale Borough Council,15405,Supplies & Services,Individual Elector Registration,Use of External Printers,26/11/2014,99334,828.16,PRINT IMAGE NETWORK LIMITED,A01127,8,2014
Allerdale Borough Council,15405,Supplies & Services,Individual Elector Registration,Use of External Printers,26/11/2014,99335,1274.75,PRINT IMAGE NETWORK LIMITED,A01127,8,2014
Allerdale Borough Council,15405,Supplies & Services,Individual Elector Registration,Use of External Printers,26/11/2014,99336,1855.00,PRINT IMAGE NETWORK LIMITED,A01127,8,2014
Allerdale Borough Council,15405,Supplies & Services,Individual Elector Registration,Use of External Printers,26/11/2014,99337,769.30,PRINT IMAGE NETWORK LIMITED,A01127,8,2014
Allerdale Borough Council,15405,Supplies & Services,Individual Elector Registration,Use of External Printers,26/11/2014,99338,1522.86,PRINT IMAGE NETWORK LIMITED,A01127,8,2014
Allerdale Borough Council,16302,Supplies & Services,Members Services,Room Hire,26/11/2014,99339,201.00,CUMB RURAL ENTERPRISE AGENCY,A01640,8,2014
Allerdale Borough Council,15506,Supplies & Services,Corporate Improvement Team,Professional Services,26/11/2014,99340,275.40,SOUTH LAKELAND DISTRICT COUNCIL,A00569,8,2014
Allerdale Borough Council,15405,Supplies & Services,Electoral Registration,Use of External Printers,26/11/2014,99341,140.00,FIRPRESS PRINTERS,A00063,8,2014
Allerdale Borough Council,15405,Supplies & Services,Electoral Registration,Use of External Printers,26/11/2014,99342,150.00,FIRPRESS PRINTERS,A00063,8,2014
Allerdale Borough Council,15506,Supplies & Services,Corporate Improvement Team,Professional Services,26/11/2014,99343,350.40,SOUTH LAKELAND DISTRICT COUNCIL,A00569,8,2014
Allerdale Borough Council,20101,Third Party Payments,Recycling,Cleansing Contract,26/11/2014,99344,84.60,CUMBRIA WASTE MANAGEMENT LTD,A01304,8,2014
Allerdale Borough Council,16150,Supplies & Services,Solway Wetlands Project,General Promotions,10/12/2014,99345,3621.03,NATURAL ENGLAND,A01865,8,2014
Allerdale Borough Council,15513,Supplies & Services,Carnegie Theatre,Subcontractors - General,,99346,225.00,STOCK CONTROL SOLUTIONS,A00256,8,2014
Allerdale Borough Council,12350,Premises,Camping & Caravan Sites,General-Facilities Management,26/11/2014,99347,11000.00,KESWICK TOWN COUNCIL,A00253,8,2014
Allerdale Borough Council,15513,Supplies & Services,Carnegie Theatre,Subcontractors - General,03/12/2014,99348,240.00,R W AUDIO,C00059,8,2014
Allerdale Borough Council,16150,Supplies & Services,Town Centre Management,General Promotions,10/12/2014,99349,240.00,AST SIGNS LIMITED,A01473,8,2014
Allerdale Borough Council,15405,Supplies & Services,Solway Coast AONB Core Funding,Use of External Printers,26/11/2014,99350,375.00,BLACK DIAMOND GRAPHICS,A02112,8,2014
Allerdale Borough Council,16150,Supplies & Services,Solway Coast AONB Core Funding,General Promotions,26/11/2014,99351,3690.00,CRAGGATAK CONSULTING,A01916,8,2014
Allerdale Borough Council,10401,Employee Costs,Elections,Agency Staff Costs,03/12/2014,99352,11611.67,ASSOCIATION OF ELECTORAL ADMIN,A00189,8,2014
Allerdale Borough Council,16150,Supplies & Services,Solway Wetlands Project,General Promotions,,99353,60.00,FIRST AID ACADEMY LTD,A01756,8,2014
Allerdale Borough Council,10601,Employee Costs,Solway Wetlands Project,External Courses & Seminar Fees,,99354,45.00,INSTITUTE FOR OUTDOOR LEARNING,A02075,8,2014
Allerdale Borough Council,15513,Supplies & Services,Carnegie Theatre,Subcontractors - General,26/11/2014,99355,495.00,R W AUDIO,C00059,8,2014
Allerdale Borough Council,10401,Employee Costs,Housing Services Pay Group,Agency Staff Costs,26/11/2014,99356,845.25,TEDGEM INVESTMENTS LTD,A01962,8,2014
Allerdale Borough Council,15500,Supplies & Services,Disposal of Allerdale Sites,Budget-Services,10/12/2014,99357,240.00,MACDONALD & COMPANY FREELANCE LTD,A01947,8,2014
Allerdale Borough Council,16150,Supplies & Services,Solway Wetlands Project,General Promotions,26/11/2014,99358,85.00,CUMBRIA LOOS,A00217,8,2014
Allerdale Borough Council,16150,Supplies & Services,Town Centre Management,General Promotions,10/12/2014,99359,60.74,AST SIGNS LIMITED,A01473,8,2014
Allerdale Borough Council,15904,Supplies & Services,Members Services,Training,,99360,335.00,IMPROVEMENT & DEVELOPMENT AGENCY,A00484,8,2014
Allerdale Borough Council,15405,Supplies & Services,Planning Policy,Use of External Printers,26/11/2014,99361,950.00,FIRPRESS PRINTERS,A00063,8,2014
Allerdale Borough Council,12305,Premises,Corporate Property Maintenance,Inspections and Services,26/11/2014,99362,228.60,AQUAID (NORTH),A00123,8,2014
Allerdale Borough Council,20150,Third Party Payments,Off-street - Managed,General Partnership Service Fees,26/11/2014,99363,26801.88,MARYPORT HARBOUR & MARINA LIMITED (PREV MARYPORT DEVELOP),A00186,8,2014
Allerdale Borough Council,12402,Premises,Corporate Property Maintenance,Electricity,26/11/2014,99364,384.80,SOUTHERN ELECTRIC,X00018,8,2014
Allerdale Borough Council,12408,Premises,Corporate Property Maintenance,Water & Sewage,26/11/2014,99365,49.57,UNITED UTILITIES,X00011,8,2014
Allerdale Borough Council,12408,Premises,Public Convenience Cleaning,Water & Sewage,26/11/2014,99366,58.05,UNITED UTILITIES ,X00011,8,2014
Allerdale Borough Council,12408,Premises,Public Convenience Cleaning,Water & Sewage,26/11/2014,99367,57.28,UNITED UTILITIES ,X00011,8,2014
Allerdale Borough Council,12104,Premises,Parks Development,Playground Equipment,10/12/2014,99368,538.53,PLAY & LEISURE,A01569,8,2014
Allerdale Borough Council,12104,Premises,Parks Development,Playground Equipment,10/12/2014,99369,1612.20,PLAY & LEISURE,A01569,8,2014
Allerdale Borough Council,12104,Premises,Sustaining Strategic Parks & Open Spaces,Playground Equipment,10/12/2014,99370,2226.80,PLAY & LEISURE,A01569,8,2014
Allerdale Borough Council,20111,Third Party Payments,Community Safety,Voluntary Organisations,26/11/2014,99371,5000.00,THE POLICE & CRIME COMMISSIONER FOR CUMBRIA,M00443,8,2014
Allerdale Borough Council,15502,Supplies & Services,Legal Services,Land Registry Fees,20/11/2014,99372,24.00,HM LAND REGISTRY ,A00505,8,2014
Allerdale Borough Council,15502,Supplies & Services,Legal Services,Land Registry Fees,25/11/2014,99373,24.00,HM LAND REGISTRY,A00505,8,2014
Allerdale Borough Council,15813,Supplies & Services,Finance and Accounting Pay Group,Software Miscellaneous,,99374,174.99,BARCLAYCARD COMMERCIAL,X00207,8,2014
Allerdale Borough Council,14105,Transport,Solway Coast AONB Core Funding,"Fuel, Lubricants & Consumables",,99375,566.67,BP OIL UK LTD,X00022,8,2014
Allerdale Borough Council,14105,Transport,Homelessness,"Fuel, Lubricants & Consumables",26/11/2014,99376,282.64,BP OIL UK LTD,X00022,8,2014
Allerdale Borough Council,14105,Transport,Parking Services Pay Group,"Fuel, Lubricants & Consumables",26/11/2014,99377,445.55,BP OIL UK LTD,X00022,8,2014
Allerdale Borough Council,14105,Transport,Parking Services Pay Group,"Fuel, Lubricants & Consumables",26/11/2014,99378,676.53,BP OIL UK LTD,X00022,8,2014
Allerdale Borough Council,33112,Income,Planning and Development,Planning Fees Income,26/11/2014,99379,110.00,PEARCE SIGNS LTD,M00657,8,2014
Allerdale Borough Council,16150,Supplies & Services,Town Centre Management,General Promotions,26/11/2014,99380,400.00,Redacted information - included personal information ,M00658,8,2014
Allerdale Borough Council,16150,Supplies & Services,Town Centre Management,General Promotions,26/11/2014,99381,200.00,THE SOLWAY TRUST,M00247,8,2014
Allerdale Borough Council,16150,Supplies & Services,Town Centre Management,General Promotions,26/11/2014,99382,1000.00,Redacted information - included personal information ,M00601,8,2014
Allerdale Borough Council,16150,Supplies & Services,Town Centre Management,General Promotions,26/11/2014,99383,300.00,Redacted information - included personal information ,M00601,8,2014
Allerdale Borough Council,16150,Supplies & Services,Town Centre Management,General Promotions,26/11/2014,99384,800.00,MARYPORT T.C.,X00086,8,2014
Allerdale Borough Council,15101,Supplies & Services,Homelessness,Equipment Costs,26/11/2014,99385,78.75,ALLERDALE BOROUGH COUNCIL,X00034,8,2014
Allerdale Borough Council,15805,Supplies & Services,IT Services,Computer Network,26/11/2014,99386,4900.00,VODAFONE (PREV CABLE & WIRELESS),A00934,8,2014
Allerdale Borough Council,12307,Premises,Carnegie Theatre,Fixtures and Fittings,26/11/2014,99387,209.70,M & D ELECTRICAL DISTRIBUTION,A00077,8,2014
Allerdale Borough Council,12101,Premises,Corporate Property Maintenance,External Maintenance & Decoration,26/11/2014,99388,1140.00,ISS WATERERS LANDSCAPE,C00044,8,2014
Allerdale Borough Council,15803,Supplies & Services,IT Services,Hardware Purchase,,99389,85.77,MISCO,A00125,8,2014
Allerdale Borough Council,15303,Supplies & Services,Food and Occupational Health,Laundry,03/12/2014,99390,79.24,BERENDSEN UK LTD,A00027,8,2014
Allerdale Borough Council,12101,Premises,Corporate Property Maintenance,External Maintenance & Decoration,26/11/2014,99391,1350.00,PATON BROS SCAFFOLDING LTD,C00009,8,2014
Allerdale Borough Council,12101,Premises,Corporate Property Maintenance,External Maintenance & Decoration,26/11/2014,99392,960.00,PATON BROS SCAFFOLDING LTD,C00009,8,2014
Allerdale Borough Council,16301,Supplies & Services,Benefits,Reimbursement,03/12/2014,99393,35.00,Redacted information - included personal information ,M00659,8,2014
Allerdale Borough Council,16301,Supplies & Services,Benefits,Reimbursement,03/12/2014,99394,18.00,Redacted information - included personal information ,M00660,8,2014
Allerdale Borough Council,99902,Suspense Acc,Other Income Suspense Account,Suspense - Income Not Yet Identified,03/12/2014,99395,3250.00,SUNDERLAND CITY COUNCIL,A00979,8,2014
Allerdale Borough Council,15507,Supplies & Services,Land Charges Service,Searches,03/12/2014,99396,1680.00,CUMBRIA CC - GENERAL,A00066,8,2014
Allerdale Borough Council,10401,Employee Costs,Commissioning Support Pay Group,Agency Staff Costs,03/12/2014,99397,2000.00,CASH FRIDAY/LORD SEARCH & SELECTION LTD,A02108,8,2014
Allerdale Borough Council,12203,Premises,Public Convenience Cleaning,Plumbing and Heating Maintenance,03/12/2014,99398,1252.00,Redacted information - included personal information ,C00008,8,2014
Allerdale Borough Council,12103,Premises,Coastal Protection and Inland Flooding,Grounds Maintenance,03/12/2014,99399,96.00,Redacted information - included personal information ,C00008,8,2014
Allerdale Borough Council,12201,Premises,Public Convenience Cleaning,Internal Maintenance,03/12/2014,99400,547.00,Redacted information - included personal information ,C00008,8,2014
Allerdale Borough Council,21150,Transfer Payments,Festivals & Events,General Grants,,99401,20000.00,WORKINGTON TOWN COUNCIL,A01615,8,2014
Allerdale Borough Council,15501,Supplies & Services,Homelessness,Consultants Fees,03/12/2014,99402,25.00,BEECHWOOD GROUP PRACTICE,A00533,8,2014
Allerdale Borough Council,20102,Third Party Payments,Recycling,Horticulture (Obsolete),03/12/2014,99403,227.00,THOMPSONS PLANT HIRE LTD,A00262,8,2014
Allerdale Borough Council,14100,Transport,Recycling,Budget-Council Vehicles (Non-capital),03/12/2014,99404,1800.00,DOBIES VAUXHALL,A00254,8,2014
Allerdale Borough Council,16150,Supplies & Services,Solway AONB Other Projects,General Promotions,,99405,56.55,THE OUTDOORS COMPANY,A01066,8,2014
Allerdale Borough Council,81608,Balance Sheet,General Fund,Legal Provisions,03/12/2014,99406,200.00,HYDE HARRINGTON CHARTERED SURVEYORS,A01358,8,2014
Allerdale Borough Council,49983,Recharges,Electoral Registration,Postal & Printing Services (Indirect),03/12/2014,99407,369.46,PRINT IMAGE NETWORK LIMITED,A01127,8,2014
Allerdale Borough Council,20102,Third Party Payments,Recycling,Horticulture (Obsolete),03/12/2014,99408,464.80,THOMPSONS PLANT HIRE LTD,A00262,8,2014
Allerdale Borough Council,20102,Third Party Payments,Recycling,Horticulture (Obsolete),03/12/2014,99409,1996.14,FCC RECYCLING (UK) LTD (ALCO),A00185,8,2014
Allerdale Borough Council,20102,Third Party Payments,Recycling,Horticulture (Obsolete),03/12/2014,99410,1341.60,FCC RECYCLING (UK) LTD (ALCO),A00185,8,2014
Allerdale Borough Council,15401,Supplies & Services,Document Management Pay Group,General Stationery,,99411,961.50,HANDSET SOLUTIONS,A01900,8,2014
Allerdale Borough Council,16350,Supplies & Services,Chief Executive,Miscellaneous Expenses,10/12/2014,99412,30.00,FIRPRESS PRINTERS,A00063,8,2014
Allerdale Borough Council,12100,Premises,Environmental Initiatives,Budget-External Maintenance & Decoration,03/12/2014,99413,3332.00,ISS WATERERS LANDSCAPE,C00044,8,2014
Allerdale Borough Council,10401,Employee Costs,Planning and Development,Agency Staff Costs,10/12/2014,99414,1330.00,MATCHTECH UK LTD,A02117,8,2014
Allerdale Borough Council,20102,Third Party Payments,Recycling,Horticulture (Obsolete),03/12/2014,99415,2958.00,THOMPSONS PLANT HIRE LTD,A00262,8,2014
Allerdale Borough Council,15510,Supplies & Services,Confidential Waste,Disposal of Waste,,99417,301.00,J DUFFY LTD T/A PW CONF BUS SERVICES,A01846,8,2014
Allerdale Borough Council,14100,Transport,Recycling,Budget-Council Vehicles (Non-capital),03/12/2014,99418,1800.00,DOBIES VAUXHALL,A00254,8,2014
Allerdale Borough Council,75103,Holding and Control Accounts,Payroll Suspense Account,PAYROLL November 14 Travel & Subsistence  ,,,13486.83,INLAND REVENUE,X00038,8,2014
